Cogmind - Beta 11 X2 @@@ ROGUE MODE // 2021.02.10 @ 17:04:13 Player: Captain Croissandwich Result: Destroyed by H-55 Commando with Assault Rifle Performance ------------- Evolutions (3) 1500 Regions Visited (9) 1800 Robots Destroyed (150) 750 Value Destroyed (3347) 3347 Prototype IDs (28) 560 Alien Tech Used (0) 0 Bonus (-1636) -1636 TOTAL SCORE: 6321 Bonus ------- High Alert Combat Kills 50 Aligned with FarCom 300 Friendly Fire -1986 Cogmind --------- Core Integrity 0/700 Matter 251/300 Energy 99/100 System Corruption 3% Temperature Cool (168) Movement Core (200) Ox3 Location -7/Lower Caves Parts ------- > --- POWER (1) -------- (None) > --- PROPULSION (3) --- (None) > --- UTILITY (7) ------ Medium Storage Unit Advanced Visual Processing Unit Advanced Terrain Scan Processor Hacking Suite > --- WEAPON (2) ------- (None) > --- INVENTORY (10) --- Light Deuterium Engine High-capacity Matter Pod (200) Improved Sensor Array Terrain Scan Processor Improved Utility Shielding PSU Rigger Enhanced Autogun Peak State ------------ > --- POWER ------------ Light Deuterium Engine > --- PROPULSION ------- Improved Flight Unit Improved Flight Unit Improved Flight Unit > --- UTILITY ---------- Cryofiber Web Medium Storage Unit Huge Storage Unit Advanced Visual Processing Unit Transport Network Coupler Hacking Suite Hacking Suite > --- WEAPON ----------- Enhanced Autogun Katana > --- INVENTORY -------- Light Treads Light Treads Light Treads Improved Treads High-capacity Matter Pod Improved Sensor Array Improved Terrain Scanner Terrain Scan Processor Improved Utility Shielding Weapon Shielding PSU Rigger High-powered Shotgun Enhanced Autogun Enhanced Autogun Enhanced Autogun Enhanced Autogun Flak Cannon Rocket Launcher [Rating: 39] Favorites ----------- Power Deuterium Engine Engine Deuterium Engine Power Core Light Nuclear Core Propulsion Light Treads Treads Light Treads Flight Unit Improved Flight Unit Utility Huge Storage Unit Device Improved Heat Sink Storage Huge Storage Unit Processor Transport Network Coupler Hackware Hacking Suite Protection Light Armor Plating Weapon Light Assault Rifle Energy Gun EM Pulse Gun Energy Cannon Particle Cannon Ballistic Gun Light Assault Rifle Ballistic Cannon Flak Cannon Launcher Rocket Launcher Slashing Weapon Katana Build | -11 -10 -10 -9 -9 -9 -8 -8 -7 -7 ------- Run | Scr Mat Min Mat Min Exi Min Mat Fac Low Slots Evolved 6 | . . . 2 . . . 2 2 . Power . | . . . . . . . . . . Propulsion 1 | . . . 1 . . . . . . Utility 5 | . . . 1 . . . 2 2 . Weapon . | . . . . . . . . . . Parts Attached 147 | 6 14 12 41 9 5 4 40 11 5 Power 9 | 1 2 1 1 1 . . 2 1 . Engine 8 | 1 2 1 1 . . . 2 1 . Core 1 | . . . . 1 . . . . . Reactor . | . . . . . . . . . . Propulsion 26 | 2 2 2 8 . . . 9 3 . Treads 23 | 2 2 2 8 . . . 9 . . Leg . | . . . . . . . . . . Wheel . | . . . . . . . . . . Hover . | . . . . . . . . . . Flight 3 | . . . . . . . . 3 . Utility 48 | 2 6 3 10 3 3 1 13 5 2 Device 10 | 1 3 1 . 1 2 . 1 . 1 Storage 7 | 1 3 . 1 . . . 1 1 . Processor 5 | . . . . . . . 4 . 1 Hackware 3 | . . . . . . . . 3 . Protection 23 | . . 2 9 2 1 1 7 1 . Artifact . | . . . . . . . . . . Weapon 64 | 1 4 6 22 5 2 3 16 2 3 Energy Gun 2 | . 2 . . . . . . . . Energy Cannon 1 | . 1 . . . . . . . . Ballistic Gun 30 | 1 1 2 9 3 1 2 10 . 1 Ballistic Cannon 1 | . . 1 . . . . . . . Launcher 15 | . . 2 5 1 1 . 4 1 1 Special Weapon . | . . . . . . . . . . Impact Weapon . | . . . . . . . . . . Slashing Weapon 15 | . . 1 8 1 . 1 2 1 1 Piercing Weapon . | . . . . . . . . . . Special Melee Weapon . | . . . . . . . . . . Unidentified Prototypes 2 | . . . . 1 . . 1 . . Parts Lost 31 | . 4 4 1 . . 1 12 . 9 Power 3 | . 1 1 . . . . 1 . . Propulsion 6 | . . 1 . . . . 2 . 3 Utility 12 | . 1 . . . . 1 7 . 3 Weapon 10 | . 2 2 1 . . . 2 . 3 Highest Loss Streak 9 | . 2 2 1 . . 1 3 . 9 Average Slot Usage (%) 96 | . 98 97 99 99 99 99 87 82 66 Engine 7 | . 14 12 10 2 . . 7 . . Core 3 | . . . . 8 11 11 1 . . Treads 30 | . 27 27 32 33 33 33 26 1 . Device 2 | . 13 6 . . . . 3 . 2 Storage 11 | . 14 14 11 11 11 11 9 7 7 Processor 2 | . . . . . . . 11 15 15 Protection 15 | . . 7 21 21 21 21 9 6 3 Ballistic Gun 16 | . 21 16 16 17 11 18 17 . 1 Launcher 1 | . . 1 . . 5 3 . . . Slashing Weapon 2 | . . 2 3 4 5 . . 6 3 Naked Turns . | . . . . . . . . . . Heaviest Build 105 | 13 87 40 105 101 100 102 102 93 14 Greatest Support 63 | 40 40 40 60 60 60 60 63 63 15 Greatest Overweight (x) 3 | 2 2 . 1 1 1 1 2 1 3 Average Overweight (x) . | . . . 1 1 1 1 1 . . Largest Inventory Capacity 30 | 8 25 15 25 25 25 25 30 25 10 Average Capacity 22 | 7 14 15 24 25 25 25 25 11 10 Most Carried 25 | 5 15 15 25 25 25 25 25 25 10 Average Carried 21 | 3 12 14 23 25 24 24 23 10 9 Final Capacity 25 | 8 15 15 25 25 25 25 25 10 10 Final Carried 25 | 5 15 15 25 25 25 25 25 10 7 Class Distribution -------------------- 57% | Scavenger-Mutant 40% | Mutant Dominant Class ---------------- Mutant | -10/Materials Mutant | -10/Mines Mutant | -9/Materials Scavenger-Mutant | -9/Mines Scavenger-Mutant | -9/Exiles Scavenger-Mutant | -8/Mines Scavenger-Mutant | -8/Materials Hacker-Mutant | -7/Factory Hacker-Mutant | -7/Lower Caves Resources | -11 -10 -10 -9 -9 -9 -8 -8 -7 -7 ----------- Run | Scr Mat Min Mat Min Exi Min Mat Fac Low Matter Collected 3868 | 214 597 167 1133 189 . 292 1156 120 . Remotely 177 | 88 89 . . . . . . . . Salvage Created 5200 | 50 620 223 1855 313 13 364 1685 77 . Parts 297 | 2 34 11 120 20 . 24 80 6 . Haulers Intercepted 11 | . 1 . 6 . . . 4 . . Recyclers Shooed 15 | . 2 . 10 . . . 3 . . Parts Field Recycled . | . . . . . . . . . . Retrieved Matter . | . . . . . . . . . . Parts Self-Destructed . | . . . . . . . . . . Prevented . | . . . . . . . . . . Kills | -11 -10 -10 -9 -9 -9 -8 -8 -7 -7 ------- Run | Scr Mat Min Mat Min Exi Min Mat Fac Low Combat Hostiles Destroyed 106 | . 13 8 34 8 7 8 27 1 . Melee 3 | . . 2 . . . . . 1 . Guns 51 | . 11 3 12 2 . 2 21 . . Cannons 10 | . 2 . 8 . . . . . . AOE 42 | . . 3 14 6 7 6 6 . . Classes Destroyed 12 | 1 5 1 3 . . 1 1 . . Worker 7 | . 1 . 3 1 . . 2 . . Builder 5 | . . . 3 1 . . 1 . . Tunneler 3 | . . . . . . 3 . . . Hauler 11 | . 1 . 6 . . . 4 . . Recycler 13 | 1 . . 6 . . 1 5 . . Operator 5 | . . . 3 1 . . . 1 . Watcher 10 | . 3 . 4 . . . 3 . . Swarmer 34 | . 3 . 16 3 . 5 7 . . Grunt 42 | . 10 4 8 5 . 3 12 . . Duelist 1 | . . . . . . . 1 . . Sentry 18 | . . . 10 . . . 7 1 . Assembled 11 | . . 4 . . 7 . . . . Best Kill Streak 7 | 1 5 4 6 5 7 4 5 1 . Combat Bots Only 7 | . 4 4 5 3 7 3 5 1 . Max Kills in Single Turn 4 | 1 1 2 4 4 3 3 2 1 . Gunslinging . | . . . . . . . . . . Exploded 3 | . . 2 3 3 3 3 2 . . Melee 1 | . . 1 . . . . . 1 . Uniques/NPCs Destroyed 1 | . . . . 1 . . . . . YI-UF0 (-9/Mines) Combat | -11 -10 -10 -9 -9 -9 -8 -8 -7 -7 -------- Run | Scr Mat Min Mat Min Exi Min Mat Fac Low Damage Taken 6172 | . 573 718 1281 123 47 225 1904 335 966 Core 1256 | . 74 126 139 11 12 24 161 221 488 Absorbed by Shields . | . . . . . . . . . . Core Remaining (%) 60 | 100 . 20 . . . 53 70 . . Volleys Fired 437 | 3 60 20 150 10 13 25 150 . 6 Largest 2 | 1 2 2 2 2 1 2 2 . 1 Hottest 88 | 20 88 60 77 43 33 43 58 . 33 Shots Fired 757 | 3 120 30 254 16 13 41 274 . 6 Gun 678 | 3 110 26 214 12 6 36 267 . 4 Cannon 39 | . 10 . 29 . . . . . . Launcher 40 | . . 4 11 4 7 5 7 . 2 Special . | . . . . . . . . . . Kinetic 693 | 3 102 20 243 12 6 36 267 . 4 Thermal 18 | . 18 . . . . . . . . Explosive 40 | . . 4 11 4 7 5 7 . 2 Electromagnetic 6 | . . 6 . . . . . . . Robot Hit Streak 19 | 3 12 13 14 16 1 5 19 . 4 Robot Miss Streak 6 | . 5 1 6 1 2 3 6 . 1 Penetration Max . | . . . . . . . . . . Secondary Targets 6 | . 2 . 1 1 . . 2 . . Max Gunslinging Chain 1 | . 1 . 1 1 . . 1 . . Shots Hit Robots 538 | 3 79 29 189 19 2 25 179 8 5 Core Hits 288 | 2 32 17 109 17 13 17 74 3 4 Critical Hits 6 | . 2 . . 1 . 1 2 . . Critical Kills 3 | . 1 . . . . . 2 . . Critical Parts Destroyed 2 | . 1 . . 1 . . . . . Melee Attacks 60 | . . 10 18 6 . 1 3 21 1 Impact . | . . . . . . . . . . Slashing 60 | . . 10 18 6 . 1 3 21 1 Piercing . | . . . . . . . . . . Sneak Attacks 13 | . . . 7 6 . . . . . Combat Hostiles . | . . . . . . . . . . Follow-up Attacks . | . . . . . . . . . . Damage Inflicted 11985 | 39 923 642 4089 1143 358 745 3389 308 349 Guns 5975 | 39 796 208 1815 88 . 209 2748 . 72 Cannons 551 | . 104 . 447 . . . . . . Explosions 3420 | . . 248 1028 433 358 496 580 . 277 Melee 1813 | . . 174 713 618 . . . 308 . Ramming 226 | . 23 12 86 4 . 40 61 . . Kinetic 6277 | 39 720 139 2262 88 . 209 2748 . 72 Thermal 180 | . 180 . . . . . . . . Explosive 3420 | . . 248 1028 433 358 496 580 . 277 Electromagnetic 69 | . . 69 . . . . . . . Impact . | . . . . . . . . . . Slashing 1813 | . . 174 713 618 . . . 308 . Piercing . | . . . . . . . . . . Highest Corruption 3 | . . . . . . . . . 3 Average Corruption 2 | . . . . . . . . . 2 Corruption Purged . | . . . . . . . . . . Effects 1 | . . . . . . . . . 1 Heat Flow Errors 1 | . . . . . . . . . 1 Overload Shots . | . . . . . . . . . . Overflow Damage 620 | . . 11 295 168 9 10 80 47 . Projectiles . | . . . . . . . . . . Explosions 178 | . . 11 68 . 9 10 80 . . Melee 442 | . . . 227 168 . . . 47 . Knockbacks 3 | . . . 3 . . . . . . Impact . | . . . . . . . . . . Kinetic 3 | . . . 3 . . . . . . Secondary . | . . . . . . . . . . Self-Inflicted Damage 167 | . . 58 49 . 24 36 . . . Shots 5 | . . 2 1 . 1 1 . . . Rammed 30 | . 7 2 8 1 . 4 8 . . Targets Rammed 33 | . 7 2 8 1 . 6 9 . . Kicked . | . . . . . . . . . . Crushed 3 | . . . . . . 2 1 . . Highest Temperature 250 | . 135 23 167 64 76 47 232 . 250 Average Temperature 51 | . 38 7 33 30 43 17 90 . 189 Received Heat Transfer 2287 | . 258 246 429 57 40 27 792 114 324 Siege Activations . | . . . . . . . . . . Robots Corrupted . | . . . . . . . . . . Combat Hostiles . | . . . . . . . . . . Parts Fried . | . . . . . . . . . . Impact Corruptions . | . . . . . . . . . . Robots Melted . | . . . . . . . . . . Combat Hostiles . | . . . . . . . . . . Parts Melted . | . . . . . . . . . . Heat Transferred 360 | . 360 . . . . . . . . Parts Sabotaged . | . . . . . . . . . . Parts Stolen . | . . . . . . . . . . Parts Stripped . | . . . . . . . . . . Power Chain Reactions . | . . . . . . . . . . Missiles Intercepted . | . . . . . . . . . . Alert | -11 -10 -10 -9 -9 -9 -8 -8 -7 -7 ------- Run | Scr Mat Min Mat Min Exi Min Mat Fac Low Peak Influence 483 | 5 195 68 457 354 . 206 483 324 . Initial 196 | . 3 18 15 109 . . 9 196 . Average 130 | 2 69 27 141 91 . 65 258 195 . Maximum Alert Level 2 | . . . 2 1 . 1 2 1 . Low Security (%) 71 | 100 100 100 67 76 . 84 34 64 . Level 1 24 | . . . 32 23 . 15 43 35 . Level 2 4 | . . . . . . . 22 . . Level 3 . | . . . . . . . . . . Level 4 . | . . . . . . . . . . Level 5 . | . . . . . . . . . . High Security . | . . . . . . . . . . Max Security . | . . . . . . . . . . Squads Dispatched 12 | . 3 1 3 . . . 2 3 . Investigation 6 | . 3 1 . . . . . 2 . Extermination . | . . . . . . . . . . Reinforcement 5 | . . . 3 . . . 1 1 . Assault 1 | . . . . . . . 1 . . Garrison . | . . . . . . . . . . Intercept . | . . . . . . . . . . Construction Impeded 1 | . . . . . . . 1 . . Haulers Reinforced . | . . . . . . . . . . Stealth | -11 -10 -10 -9 -9 -9 -8 -8 -7 -7 --------- Run | Scr Mat Min Mat Min Exi Min Mat Fac Low Distress Signals 6 | . . 1 3 . . . 2 . . Communications Jammed . | . . . . . . . . . . Distress Signals . | . . . . . . . . . . Times Spotted 183 | . 21 10 55 8 7 7 48 18 9 Peak Tracking Total 10 | . 3 4 8 3 9 4 6 10 9 Tactical Retreats 14 | . 2 2 2 . . 1 3 4 . Traps | -11 -10 -10 -9 -9 -9 -8 -8 -7 -7 ------- Run | Scr Mat Min Mat Min Exi Min Mat Fac Low Traps Triggered 1 | . 1 . . . . . . . . Indirectly . | . . . . . . . . . . Trap Hack Attempts . | . . . . . . . . . . Triggered . | . . . . . . . . . . Disarmed . | . . . . . . . . . . Reprogrammed . | . . . . . . . . . . Reused . | . . . . . . . . . . Traps Extracted . | . . . . . . . . . . Installed . | . . . . . . . . . . Triggered . | . . . . . . . . . . Exploded 2 | . . . . . 2 . . . . Machines | -11 -10 -10 -9 -9 -9 -8 -8 -7 -7 ---------- Run | Scr Mat Min Mat Min Exi Min Mat Fac Low Machines Disabled 8 | . . . 1 1 5 1 . . . Max in Single Turn 2 | . . . 1 1 2 1 . . . Garrison Access 2 | . . . . . . . 1 1 . Machines Sabotaged . | . . . . . . . . . . Garrisons Compromised . | . . . . . . . . . . Overloaded Fab Kills . | . . . . . . . . . . Fab Network Shutdowns . | . . . . . . . . . . Hacking | -11 -10 -10 -9 -9 -9 -8 -8 -7 -7 --------- Run | Scr Mat Min Mat Min Exi Min Mat Fac Low Machines Accessed 53 | . 11 1 14 1 4 . 13 8 1 Terminals 31 | . 8 . 9 . . . 8 6 . Fabricators . | . . . . . . . . . . Repair Stations 5 | . 1 . 2 . . . 2 . . Recycling Units 5 | . 2 . 1 . . . 1 1 . Scanalyzers 3 | . . . 2 . . . 1 . . Garrison Access 2 | . . . . . . . 1 1 . Total Hacks 178 | . 41 1 59 1 19 . 40 16 1 Successful 120 | . 27 1 41 1 19 . 22 8 1 Failed 58 | . 14 . 18 . . . 18 8 . Catastrophic 7 | . 2 . . . . . 2 3 . Database Lockouts . | . . . . . . . . . . Manual 69 | . 29 . 21 . 1 . 16 2 . Terminals 111 | . 32 . 37 . . . 28 14 . Fabricators . | . . . . . . . . . . Repair Stations 22 | . 4 . 13 . . . 5 . . Recycling Units 11 | . 5 . 1 . . . 4 1 . Scanalyzers 10 | . . . 8 . . . 2 . . Garrison Access 2 | . . . . . . . 1 1 . Terminal Hacks 63 | . 10 1 14 1 19 . 10 7 1 Record 18 | . . . . . 18 . . . . Robot Analysis 9 | . 2 . 1 . . . 4 2 . Prototype ID Bank 1 | . 1 . . . . . . . . Open Door 3 | . . 1 . 1 . . . . 1 Branch Access Points 4 | . 1 . 2 . . . . 1 . Emergency Access Points 2 | . 1 . 1 . . . . . . Machine Index 1 | . . . . . . . 1 . . Terminal Index 4 | . 1 . 1 . . . 1 1 . Unreport Threat 4 | . . . 2 . . . . 2 . Locate Traps 5 | . 2 . 2 . . . . 1 . Transport Status 1 | . . . 1 . . . . . . Hauler Manifests 3 | . 1 . 1 . . . 1 . . Registered Components 1 | . . . . . . . 1 . . Zone Layout 6 | . 1 . 3 . . . 2 . . EX-Prototype ID Bank 1 | . . . . . 1 . . . . Fabricator Hacks . | . . . . . . . . . . Repair Station Hacks 18 | . 4 . 10 . . . 4 . . Scan Component 9 | . 2 . 5 . . . 2 . . Repair 9 | . 2 . 5 . . . 2 . . Recycling Unit Hacks 3 | . 1 . 1 . . . 1 . . Retrieve Components 3 | . 1 . 1 . . . 1 . . Scanalyzer 10 | . . . 8 . . . 2 . . Insert Component 5 | . . . 4 . . . 1 . . Analyze 5 | . . . 4 . . . 1 . . Garrison Access Hacks 2 | . . . . . . . 1 1 . Seal Access 2 | . . . . . . . 1 1 . Unauthorized Hacks 24 | . 12 . 8 . . . 4 . . Terminals 20 | . 9 . 8 . . . 3 . . Track 4 | . 3 . 1 . . . . . . Assimilate 4 | . 2 . 2 . . . . . . Botnet 9 | . 3 . 4 . . . 2 . . Operators 3 | . 1 . 1 . . . 1 . . Fabricators . | . . . . . . . . . . Repair Stations . | . . . . . . . . . . Recycling Units 4 | . 3 . . . . . 1 . . Mask 2 | . 1 . . . . . 1 . . Tunnel 2 | . 2 . . . . . . . . Scanalyzers . | . . . . . . . . . . Garrison Access . | . . . . . . . . . . Data Cores Recovered 1 | . . . 1 . . . . . . Used . | . . . . . . . . . . Hacking Detections 43 | . 11 . 13 . . . 12 7 . Full Trace Events 3 | . . . 1 . . . . 2 . Feedback Events . | . . . . . . . . . . Feedback Blocked . | . . . . . . . . . . Robot Schematics Acquired . | . . . . . . . . . . Robots Built . | . . . . . . . . . . Matter . | . . . . . . . . . . Time . | . . . . . . . . . . Total Robot Build Rating . | . . . . . . . . . . Part Schematics Acquired 5 | . . . 4 . . . 1 . . Parts Built . | . . . . . . . . . . Matter . | . . . . . . . . . . Time . | . . . . . . . . . . Total Part Build Rating . | . . . . . . . . . . Parts Repaired 9 | . 2 . 5 . . . 2 . . Time 282 | . 58 . 160 . . . 64 . . Parts Recycled . | . . . . . . . . . . Recycled Matter . | . . . . . . . . . . Retrieved Matter . | . . . . . . . . . . Retrieved Components 21 | . 2 . 10 . . . 9 . . Parts Scanalyzed 5 | . . . 4 . . . 1 . . Part Schematics Acquired 5 | . . . 4 . . . 1 . . Parts Damaged . | . . . . . . . . . . Bothacking | -11 -10 -10 -9 -9 -9 -8 -8 -7 -7 ------------ Run | Scr Mat Min Mat Min Exi Min Mat Fac Low Used RIF Installer . | . . . . . . . . . . Robots Hacked . | . . . . . . . . . . Non-combat . | . . . . . . . . . . Combat . | . . . . . . . . . . Robot Hacks Applied . | . . . . . . . . . . Relay Couplers Released . | . . . . . . . . . . Robots Rewired . | . . . . . . . . . . Allies Hacked . | . . . . . . . . . . Hacks Repelled . | . . . . . . . . . . Allies | -11 -10 -10 -9 -9 -9 -8 -8 -7 -7 -------- Run | Scr Mat Min Mat Min Exi Min Mat Fac Low Total Allies 3 | . 1 . 1 1 . . . . . Largest Group 1 | . 1 1 1 1 . . . . . Highest-Rated Group 31 | . 10 10 10 31 . . . . . Highest-Rated Ally 31 | . 10 10 10 31 . . . . . Total Orders 2 | . . . 2 . . . . . . STAY 1 | . . . 1 . . . . . . FOLLOW 1 | . . . 1 . . . . . . Ally Attacks . | . . . . . . . . . . Total Damage . | . . . . . . . . . . Kills . | . . . . . . . . . . Allies Corrupted . | . . . . . . . . . . Allies Melted . | . . . . . . . . . . Intel | -11 -10 -10 -9 -9 -9 -8 -8 -7 -7 ------- Run | Scr Mat Min Mat Min Exi Min Mat Fac Low Robot Analysis Total 9 | . 2 . 1 . . . 4 2 . Derelict Logs Recovered 2 | . . 1 . 1 . . . . . Drone Launches . | . . . . . . . . . . Drone Recoveries . | . . . . . . . . . . Exploration | -11 -10 -10 -9 -9 -9 -8 -8 -7 -7 ------------- Run | Scr Mat Min Mat Min Exi Min Mat Fac Low Turns Passed 17683 | 90 2355 1137 5316 1694 2288 1589 2827 319 68 Spaces Moved 7263 | 48 1228 644 1735 630 862 578 868 580 90 Core 21 | 17 . . . . . . . . 4 Treads 6582 | 31 1228 644 1735 630 862 578 868 6 . Legs . | . . . . . . . . . . Wheels . | . . . . . . . . . . Hover . | . . . . . . . . . . Flight 660 | . . . . . . . . 574 86 Fastest Speed 34 | 50 160 160 260 260 260 260 260 34 34 Average Speed 213 | 143 163 160 260 260 260 260 260 36 55 Slowest Speed 360 | 160 360 160 260 260 260 260 360 260 200 Overloaded Moves . | . . . . . . . . . . Propulsion Burnouts . | . . . . . . . . . . Robots Hopped 3 | . . . . . . . . 3 . Cave-ins Triggered . | . . . . . . . . . . Exploration Rate (%) 65 | 4 98 97 90 99 73 94 64 22 18 Regions Visited 9 Branch Regions 5 Pre-discovered Areas 4 | . 2 1 . . 1 . . . . Known Exits Taken 3 | . 1 . 1 . . . . 1 . Unknown Exits Taken 6 | 1 . 1 . 1 1 1 1 . . Scrap Searched 4 | . . 2 . 1 . 1 . . . Spaces Dug 111 | . . 41 43 . . 1 12 13 1 Terrain Destroyed 383 | . . 52 104 25 33 62 76 13 18 Melee 26 | . . . 9 . . 1 2 13 1 Projectile . | . . . . . . . . . . AOE 357 | . . 52 95 25 33 61 74 . 17 Terrain Rammed . | . . . . . . . . . . Walls Destroyed . | . . . . . . . . . . Machines Disabled . | . . . . . . . . . . Actions | -11 -10 -10 -9 -9 -9 -8 -8 -7 -7 --------- Run | Scr Mat Min Mat Min Exi Min Mat Fac Low Total 8646 | 63 1457 702 2266 659 900 616 1219 661 103 Wait 552 | 2 118 7 265 . . . 127 33 . Move 7248 | 47 1227 643 1734 629 861 577 867 573 90 Hop 3 | . . . . . . . . 3 . Pick Up 76 | 5 20 5 25 . 9 2 9 1 . Fast Attach 39 | 6 4 1 7 4 3 . 13 1 . Attach 31 | . 5 4 3 . . 1 6 9 3 Detach 2 | . . . . . . . . 2 . Swap 77 | . 5 7 31 5 2 3 21 1 2 Drop 88 | . 11 3 25 4 12 1 14 17 1 Fire 437 | 3 60 20 150 10 13 25 150 . 6 Melee 60 | . . 10 18 6 . 1 3 21 1 Ram . | . . . . . . . . . . Kick . | . . . . . . . . . . Crush 33 | . 7 2 8 1 . 6 9 . . Escape Stasis . | . . . . . . . . . . Rewire . | . . . . . . . . . . Trap . | . . . . . . . . . . Miscellaneous . | . . . . . . . . . . Route ------- -11/Scrapyard -10/Materials (discovered 4 exits: *Mat x3 / *Min) -10/Mines (discovered 2 exits: *Mat x2) -9/Materials (discovered 4 exits: *Mat x3 / *Min) -9/Mines (discovered 3 exits: *Mat x2 / *Exi) -9/Exiles -8/Mines (discovered 2 exits: *Mat x2) -8/Materials (discovered 3 exits: *Fac x3) -7/Factory (discovered 3 exits: Sto / *Low x2) -7/Lower Caves History --------- Turn | Location | Event 9 | -11/Scrapyard | Discovered new exit (range 15) 91 | -11/Scrapyard | Entered Materials 103 | -10/Materials | Discovered new exit (range 16) 150 | -10/Materials | Identified exit to Mines 320 | -10/Materials | Build established: Mutant 451 | -10/Materials | Discovered new exit (range 15) 794 | -10/Materials | Discovered new exit (range 5) 1103 | -10/Materials | Discovered new exit (range 15) 1826 | -10/Materials | Repaired Rocket Launcher 1853 | -10/Materials | Repaired Lgt. Treads 2446 | -10/Materials | Entered Mines 2446 | -10/Mines | Accompanied by 1 ally 2467 | -10/Mines | Discovered new exit (range 13) 2579 | -10/Mines | Learned 2 Materials zone layouts 2689 | -10/Mines | Learned location of Storage (-7) 2912 | -10/Mines | Assembled infested the area 2917 | -10/Mines | Assisted by a Guerilla fighting off Assembled 2964 | -10/Mines | Core integrity fell below 50% 3053 | -10/Mines | Met a Derelict shopkeep closing up shop 3385 | -10/Mines | Discovered new exit (range 4) 3583 | -10/Mines | Entered Materials 3583 | -9/Materials | Evolved 2 slots: Propulsion x1, Utility x1 3635 | -9/Materials | Repaired Rocket Launcher 3662 | -9/Materials | Repaired Lgt. Treads 3933 | -9/Materials | Discovered new exit (range 16) 4421 | -9/Materials | Discovered new exit (range 11) 4469 | -9/Materials | Identified exit to Mines 4910 | -9/Materials | Repaired Lgt. Armor Plating 4954 | -9/Materials | Repaired Deuterium Engine 4993 | -9/Materials | Repaired Flak Cannon 5209 | -9/Materials | Build established: Scavenger-Mutant 5610 | -9/Materials | Build established: Mutant 7877 | -9/Materials | Discovered new exit (range 8) 7921 | -9/Materials | Build established: Scavenger-Mutant 8463 | -9/Materials | Discovered new exit (range 16) 8899 | -9/Materials | Entered Mines 8899 | -9/Mines | Accompanied by 1 ally 9435 | -9/Mines | Discovered new exit (range 5) 9564 | -9/Mines | Found the Drone Emporium 9577 | -9/Mines | Found Prototype Device 9577 | -9/Mines | Identified Decoy Drone Bay 9631 | -9/Mines | Deemed a non-threat by the Exiles lab entrance 9631 | -9/Mines | Discovered new exit (range 5) 9842 | -9/Mines | Discovered new exit (range 4) 10024 | -9/Mines | Learned 4 Materials zone layouts 10088 | -9/Mines | YI-UF0 nonchalantly dropped a Grenade Launcher on the ground 10208 | -9/Mines | Destroyed YI-UF0 10273 | -9/Mines | Received a Mining Laser from a helpful Derelict 10593 | -9/Mines | Entered Exiles 10656 | -9/Exiles | Met 8R-AWN 10700 | -9/Exiles | Met EX-HEX 10804 | -9/Exiles | Met EX-DEC 10866 | -9/Exiles | Learned location of Zion (-6) 11160 | -9/Exiles | Met EX-BIN 11340 | -9/Exiles | Aligned with FarCom system 11342 | -9/Exiles | Given EX-Vault access code 11402 | -9/Exiles | Opened EX-Vault 11421 | -9/Exiles | Found PSU Rigger 11428 | -9/Exiles | Found Skeleton Box 11449 | -9/Exiles | Found Deploy-a-Sentry 11528 | -9/Exiles | Warned to stay clear of 0b10 Research branches 11692 | -9/Exiles | Discovered new exit (range 12) 12803 | -9/Exiles | Attacked by the Exiles 12860 | -9/Exiles | Destroyed 7 combat bots 12881 | -9/Exiles | Left Exiles lab with PSU Rigger 12881 | -9/Exiles | Entered Mines 13488 | -8/Mines | Discovered new exit (range 5) 13660 | -8/Mines | Discovered new exit (range 7) 14470 | -8/Mines | Entered Materials 14470 | -8/Materials | Evolved 2 slots: Utility x2 14831 | -8/Materials | Lost 3 parts (1p1n1u) 15952 | -8/Materials | Discovered new exit (range 13) 16392 | -8/Materials | Discovered new exit (range 9) 16463 | -8/Materials | Repaired Rocket Launcher 16931 | -8/Materials | Repaired Imp. Ion Engine 17195 | -8/Materials | Discovered new exit (range 10) 17270 | -8/Materials | First assault squad dispatched 17297 | -8/Materials | Entered Factory 17297 | -7/Factory | Evolved 2 slots: Utility x2 17570 | -7/Factory | Identified exit to Storage 17570 | -7/Factory | Identified exit to Lower Caves 17616 | -7/Factory | Entered Lower Caves 17637 | -7/Lower Caves | Build established: Hacker-Mutant 17668 | -7/Lower Caves | Core integrity fell below 50% 17678 | -7/Lower Caves | Core integrity fell below 20% 17684 | -7/Lower Caves | Destroyed by H-55 Commando with Assault Rifle Last Messages --------------- 17621_ Y-64 Sentinel: "ENEMY REINFORCEMENTS INCOMING." 17621_ Slug penetrates Wall. 17621_ WAR.Sys disabled. 17645_ Discarded Transport Network Coupler. 17647_ Katana destroyed. 17647_ Imp. Flight Unit destroyed. 17658_ Slug penetrates Wall. 17661_ Imp. Flight Unit destroyed. 17663_ Hacking Suite destroyed. 17663_ Imp. Flight Unit destroyed. 17667_ Imp. Terrain Scanner destroyed. 17672_ System corrupted: Heat flow error (+284). 17672_ Hacking Suite destroyed. 17672_ Slug penetrates G-47 Trooper. 17675_ Penetrated by Slug. 17676_ Rocket Launcher destroyed. 17682_ G-47 Trooper suffers critical hit. 17684_ P-60 Hacker resets G-47 Trooper, system corruption cleaned. 17684_ Critical hit. 17684_ Enh. Autogun destroyed. Map ----- +----------------------------------------------------+ | ?????????????????????????????????????????????????? | | ?????????????????????????????????????????????????? | | ?????????????????????????????????????????????????? | | ?????????????????????????????????????????????????? | | ?????????????????????????????????????????????????? | | ???????????????????????????????#????#????????????? | | ???????????????????????????????#???#?????????????? | | ??????????????????? ???? ????#?#????#?? ?????????? | | ??????????????????? ? ???????????##??? #????????? | | ???????????????????? ???????????#?# ???????#?????? | | ???????????????????? ?? ??#?####????#???????????? | | ????????????????????# ???####??#?#? ?#??#?????#??? | | ???????????????????## ???# ???? ?????#??????? | | ????????????????????# #?# ????????##?#????????? | | ??????????????????### #?# #???????#?????#??????? | | ?????????????? #### ### h#?#???????#??#???????? | | ?????????????? # ########?#???#?#?????? | | ????????????????? ##########??#??? | | ????????????????????## ### #?#???? | | ?????????????????????# ######? | | ??????????????? ??????# p g g ## | | ?????????????? ???????## p # | | ???????????????????#?#?## g g ## ## | | ????????????????? ???#### g #?## | | ?????????????????? ????## ##?## ## | | ????????????????????#??# @ ##??# ###?# ### | | ???????????????????#### ####?# ##??## #?? | | ????????????? ??????## ##???# ##?#?? #?? | | ???????????????? ?? ####### ###???? #### | | ?????????????????? #?##### ##???#?## | | ????????????????? ###"# ##?#??# | | ????????????????# #?## ####### | | ????????????????### ?####### # | | ?????????????????### ?#?#?#?## ## ### | | ???????????????????# ??#??### ## ##?# | | ????????????????#??# ## ??##????## ## #??# | | ??????????????????? ?? #????#### #### ##?## | | ?????????????????? #?? ???????# ##?## ##?# | | ?????????????????? ??? #?#???#?## ###### ##? | | ????????????????? ## ?? #???????## ###?# #? | | ????????????????? #?# ## ??#???### ### #? | | ????????????????? ?? ???? ????#??# ### #? | | ???????????????????? ??# ??????### ##? | | ????????????????????????? #????#??#### #?? | | ??????????????????????#?? ????#??????## ##?? | | ?????????????????????????????? ???#??## ##??? | | ??????????????????????????????????????## #???? | | ???????????????????????????????????????### #???? | | ?????????????????????????????????????????## #???? | | ??????????????????????????????????????????####???? | +----------------------------------------------------+ Best States ------------- Heat Dissipation 39 Energy Generation 14 Energy Capacity 275 Matter Stores 300 Matter Capacity 300 Sight Range 20 Terrain Scan Range 16 Terrain Scan Density 210 Base Temperature (-) 100 Armor Coverage 525 Resistance: EM 15 Utility Shielding 66 Weapon Shielding 33 Evasion (%) 63 Recoil Reduction 3 Offensive Hacking 30 Item Schematics ----------------- Imp. Utility Shielding | -9/Materials | Scanalyzed Imp. Flight Unit | -9/Materials | Scanalyzed Med. Storage Unit | -9/Materials | Scanalyzed Hacking Suite | -9/Materials | Scanalyzed Imp. Sensor Array | -8/Materials | Scanalyzed Robot Schematics ------------------ None Fabricated ------------ Nothing Alien Tech Used ----------------- None Achievements -------------- None Challenges ------------ None Game ------ Seed ContainmentLobotomyBoomstick Manual? 0 Play Time 01:52:49 Cumulative 88.6 hours Start 2021.02.10 @ 14:53:12 End 2021.02.10 @ 17:04:13 Sessions 1 Manual Loads 0 Difficulty Rogue Special Mode None Game No. 65 Rogue 44 Adventurer 13 Explorer 8 Win Type - Total 3 Types 2/0/1/0/0/0/0/0/0 Lore% 71 Gallery% 70 Achievement% 51 Wizard Run 0 Options --------- ASCII 0 Keyboard 0 Movement Numpad Keybinds 0 Fullscreen 2 Font 18/SmallcapsGlow Map View 76x50 Tactical HUD 1 Map Filters NONE Filters NONE Steam 1 RUN: bfee627d-f0fd-4834-a742-2caaa335eb45